{"text_format":"1","workbook":"xlsx","n_sheets":1,"sheets":["Chapter 9 Form 750-020-11a"],"not_rendered":{"charts":1,"images":2,"macros":1,"external_links":1,"defined_names":18,"comments":0,"pivot_tables":0},"unopened":[],"bounds":{"document_bytes":16777216,"sheet_cells":100000,"rows_first":2000,"rows_last":500,"rows_between":2000,"halvings":0,"cell_chars":16384,"cell_head_chars":4096},"cells_cut":0,"cells_raw":0,"read":"whole","date_system":"1900"}

{"sheet":"Chapter 9 Form 750-020-11a","index":0,"n_rows":131,"n_cols":47,"rows_kept":131,"cut":false,"hidden":false,"merged":[[9,18,9,23],[44,22,44,24],[45,22,45,24],[13,25,13,34],[53,0,53,34],[10,0,10,4],[10,5,10,16],[36,18,36,20],[36,25,36,27],[36,32,36,34],[37,18,37,20],[37,25,37,27],[37,32,37,34],[47,29,47,31],[48,29,48,31],[49,29,49,31],[31,29,31,31],[32,29,32,31],[33,29,33,31],[34,29,34,31],[35,22,35,24],[36,22,36,24],[35,29,35,31],[50,29,50,31],[6,0,6,4],[27,0,28,34],[6,11,6,13],[6,14,6,16],[6,5,6,10],[9,24,9,34],[10,24,10,34],[29,32,30,34],[35,32,35,34],[31,15,31,17],[32,15,32,17],[33,15,33,17],[34,15,34,17],[31,8,31,10],[32,8,32,10],[33,8,33,10],[34,8,34,10],[35,8,35,10],[31,4,31,6],[32,4,32,6],[35,18,35,20],[19,1,19,6],[20,1,20,6],[8,14,8,16],[41,29,41,31],[42,29,42,31],[43,29,43,31],[35,25,35,27],[36,29,36,31],[37,29,37,31],[38,29,38,31],[50,15,50,17],[31,22,31,24],[32,22,32,24],[33,22,33,24],[34,22,34,24],[49,22,49,24],[50,22,50,24],[49,18,49,20],[44,18,44,20],[42,25,42,27],[46,18,46,20],[46,25,46,27],[48,25,48,27],[47,22,47,24],[48,22,48,24],[40,22,40,24],[41,22,41,24],[48,8,48,10],[49,8,49,10],[50,8,50,10],[35,15,35,17],[36,15,36,17],[37,15,37,17],[38,15,38,17],[39,15,39,17],[40,15,40,17],[41,15,41,17],[42,15,42,17],[43,15,43,17],[44,15,44,17],[45,15,45,17],[46,15,46,17],[47,15,47,17],[48,15,48,17],[49,15,49,17],[46,11,46,13],[47,11,47,13],[48,11,48,13],[48,4,48,6],[49,11,49,13],[36,11,36,13],[35,11,35,13],[37,11,37,13],[49,1,49,3],[49,4,49,6],[50,1,50,3],[50,4,50,6],[48,1,48,3],[35,4,35,6],[36,4,36,6],[37,4,37,6],[38,4,38,6],[39,4,39,6],[40,4,40,6],[41,4,41,6],[42,4,42,6],[43,4,43,6],[44,4,44,6],[39,1,39,3],[40,1,40,3],[41,1,41,3],[42,1,42,3],[45,4,45,6],[46,4,46,6],[47,4,47,6],[42,8,42,10],[43,8,43,10],[44,8,44,10],[45,8,45,10],[39,8,39,10],[40,8,40,10],[41,8,41,10],[46,8,46,10],[47,8,47,10],[43,1,43,3],[44,1,44,3],[45,1,45,3],[46,1,46,3],[47,1,47,3],[31,1,31,3],[32,1,32,3],[33,1,33,3],[34,1,34,3],[35,1,35,3],[36,1,36,3],[37,1,37,3],[38,1,38,3],[0,0,0,34],[1,0,1,34],[2,0,2,34],[13,12,13,19],[12,12,12,19],[33,25,33,27],[33,32,33,34],[34,25,34,27],[34,32,34,34],[31,25,31,27],[31,32,31,34],[32,25,32,27],[32,32,32,34],[31,18,31,20],[32,18,32,20],[33,18,33,20],[5,0,5,4],[29,1,30,3],[29,4,30,6],[29,8,30,10],[29,11,30,13],[29,15,30,17],[29,18,30,20],[29,22,30,24],[5,5,5,16],[5,18,5,23],[33,4,33,6],[34,4,34,6],[8,0,8,4],[8,5,8,10],[8,11,8,13],[38,32,38,34],[39,25,39,27],[39,32,39,34],[34,11,34,13],[37,22,37,24],[38,22,38,24],[39,22,39,24],[38,25,38,27],[5,24,5,34],[7,0,7,4],[7,5,7,16],[6,18,6,23],[6,24,6,34],[7,18,7,23],[7,24,7,34],[29,25,30,27],[29,29,30,31],[14,0,14,4],[32,11,32,13],[31,11,31,13],[33,11,33,13],[36,8,36,10],[37,8,37,10],[38,8,38,10],[50,18,50,20],[50,25,50,27],[48,18,48,20],[34,18,34,20],[41,11,41,13],[41,18,41,20],[42,18,42,20],[38,11,38,13],[38,18,38,20],[40,11,40,13],[40,18,40,20],[42,11,42,13],[45,11,45,13],[43,11,43,13],[43,18,43,20],[44,11,44,13],[39,11,39,13],[50,32,50,34],[47,25,47,27],[47,32,47,34],[40,25,40,27],[40,32,40,34],[39,29,39,31],[40,29,40,31],[47,18,47,20],[48,32,48,34],[49,25,49,27],[49,32,49,34],[44,29,44,31],[45,29,45,31],[46,29,46,31],[42,32,42,34],[43,25,43,27],[43,32,43,34],[44,25,44,27],[44,32,44,34],[46,32,46,34],[46,22,46,24],[42,22,42,24],[39,18,39,20],[43,22,43,24],[3,0,3,16],[3,17,3,34],[8,24,8,28],[8,29,8,30],[8,31,8,34],[51,0,51,20],[52,0,52,20],[51,25,51,34],[52,25,52,34],[52,21,52,24],[8,18,8,23],[10,18,10,23],[12,25,12,34],[19,13,21,18],[14,25,14,34],[45,18,45,20],[45,25,45,27],[45,32,45,34],[12,0,12,4],[9,0,9,4],[9,5,9,16],[41,25,41,27],[41,32,41,34],[50,11,50,13]]}
[]
["State of Florida Department of Transportation"]
["WALKING SPEED STUDY - INTERSECTION"]
["SITE INFORMATION",null,null,null,null,null,null,null,null,null,null,null,null,null,null,null,null,"STUDY INFORMATION"]
[]
["Major Street",null,null,null,null,null,null,null,null,null,null,null,null,null,null,null,null,null,"Agency / Company"]
["   Roadway ID",null,null,null,null,null,null,null,null,null,null,"Milepost",null,null,null,null,null,null,"Analyst/Observer"]
["Minor Street",null,null,null,null,null,null,null,null,null,null,null,null,null,null,null,null,null,"Date Performed"]
["   Roadway ID",null,null,null,null,null,null,null,null,null,null,"Milepost",null,null,null,null,null,null,"Analysis Period",null,null,null,null,null,null,null,null,null,null,"To: "]
["City",null,null,null,null,null,null,null,null,null,null,null,null,null,null,null,null,null,"Weather"]
["County",null,null,null,null,null,null,null,null,null,null,null,null,null,null,null,null,null,"Remarks:"]
[]
["INTERSECTION",null,null,null,null,null,null,null,null,null,null,null,"MINOR STREET",null,null,null,null,null,null,null,null,null,null,null,null,"Crossing Distance (feet):"]
[]
[null,null,null,null,null,null,null,null,null,null,null,null,null,null,null,null,null,null,null,null,null,null,null,null,null,"Control Type:"]
[]
[]
[]
[]
[null,"MAJOR STREET",null,null,null,null,null,null,null,null,null,null,null,"Identify study location"]
[]
[]
[]
[]
[]
[]
[]
["FIELD DATA COLLECTION *"]
[]
["Obs","SECONDS",null,null,"NOTES",null,null,"Obs","SECONDS",null,null,"NOTES",null,null,"Obs","SECONDS",null,null,"NOTES",null,null,"Obs","SECONDS",null,null,"NOTES",null,null,"Obs","SECONDS",null,null,"NOTES",null,null,null,null,null,null,null,null,null,"Number of Records","15th percentile"]
["No.",null,null,null,null,null,null,"No.",null,null,null,null,null,null,"No.",null,null,null,null,null,null,"No.",null,null,null,null,null,null,"No.",null,null,null,null,null,null,null,null,null,null,null,null,null,{"$f":"COUNTA(B32:D51,I32:K51,P32:R51,W32:Y51,AD32:AF51)","v":0},{"$f":"ROUNDUP(AQ31*0.85,0)","v":0}]
[1,null,null,null,null,null,null,21,null,null,null,null,null,null,41,null,null,null,null,null,null,61,null,null,null,null,null,null,81,null,null,null,null,null,null,null,null,null,null,null,{"$f":"A32","v":1},{"$f":"IF(B32>0,B32,\"\")","v":""},1,null,null,{"$f":"IFERROR($Z$14/AP32,\"\")","v":""},{"$f":"AVERAGE(AT32:AT131)","v":{"$error":"#DIV/0!"}}]
[{"$f":"A32+1","v":2},null,null,null,null,null,null,{"$f":"H32+1","v":22},null,null,null,null,null,null,{"$f":"O32+1","v":42},null,null,null,null,null,null,{"$f":"V32+1","v":62},null,null,null,null,null,null,{"$f":"AC32+1","v":82},null,null,null,null,null,null,null,null,null,null,null,2,{"$f":"IF(B33>0,B33,\"\")","v":""},2,null,null,{"$f":"IFERROR($Z$14/AP33,\"\")","v":""}]
[{"$f":"A33+1","v":3},null,null,null,null,null,null,{"$f":"H33+1","v":23},null,null,null,null,null,null,{"$f":"O33+1","v":43},null,null,null,null,null,null,{"$f":"V33+1","v":63},null,null,null,null,null,null,{"$f":"AC33+1","v":83},null,null,null,null,null,null,null,null,null,null,null,3,"",3,null,null,""]
[4,null,null,null,null,null,null,24,null,null,null,null,null,null,44,null,null,null,null,null,null,64,null,null,null,null,null,null,84,null,null,null,null,null,null,null,null,null,null,null,4,"",4,null,null,""]
[5,null,null,null,null,null,null,25,null,null,null,null,null,null,45,null,null,null,null,null,null,65,null,null,null,null,null,null,85,null,null,null,null,null,null,null,null,null,null,null,5,"",5,null,null,""]
[6,null,null,null,null,null,null,26,null,null,null,null,null,null,46,null,null,null,null,null,null,66,null,null,null,null,null,null,86,null,null,null,null,null,null,null,null,null,null,null,6,"",6,null,null,""]
[7,null,null,null,null,null,null,27,null,null,null,null,null,null,47,null,null,null,null,null,null,67,null,null,null,null,null,null,87,null,null,null,null,null,null,null,null,null,null,null,7,"",7,null,null,""]
[8,null,null,null,null,null,null,28,null,null,null,null,null,null,48,null,null,null,null,null,null,68,null,null,null,null,null,null,88,null,null,null,null,null,null,null,null,null,null,null,8,"",8,null,null,""]
[9,null,null,null,null,null,null,29,null,null,null,null,null,null,49,null,null,null,null,null,null,69,null,null,null,null,null,null,89,null,null,null,null,null,null,null,null,null,null,null,9,"",9,null,null,""]
[10,null,null,null,null,null,null,30,null,null,null,null,null,null,50,null,null,null,null,null,null,70,null,null,null,null,null,null,90,null,null,null,null,null,null,null,null,null,null,null,10,"",10,null,null,""]
[11,null,null,null,null,null,null,31,null,null,null,null,null,null,51,null,null,null,null,null,null,71,null,null,null,null,null,null,91,null,null,null,null,null,null,null,null,null,null,null,11,"",11,null,null,""]
[12,null,null,null,null,null,null,32,null,null,null,null,null,null,52,null,null,null,null,null,null,72,null,null,null,null,null,null,92,null,null,null,null,null,null,null,null,null,null,null,12,"",12,null,null,""]
[13,null,null,null,null,null,null,33,null,null,null,null,null,null,53,null,null,null,null,null,null,73,null,null,null,null,null,null,93,null,null,null,null,null,null,null,null,null,null,null,13,"",13,null,null,""]
[14,null,null,null,null,null,null,34,null,null,null,null,null,null,54,null,null,null,null,null,null,74,null,null,null,null,null,null,94,null,null,null,null,null,null,null,null,null,null,null,14,"",14,null,null,""]
[15,null,null,null,null,null,null,35,null,null,null,null,null,null,55,null,null,null,null,null,null,75,null,null,null,null,null,null,95,null,null,null,null,null,null,null,null,null,null,null,15,"",15,null,null,""]
[16,null,null,null,null,null,null,36,null,null,null,null,null,null,56,null,null,null,null,null,null,76,null,null,null,null,null,null,96,null,null,null,null,null,null,null,null,null,null,null,16,"",16,null,null,""]
[17,null,null,null,null,null,null,37,null,null,null,null,null,null,57,null,null,null,null,null,null,77,null,null,null,null,null,null,97,null,null,null,null,null,null,null,null,null,null,null,17,"",17,null,null,""]
[18,null,null,null,null,null,null,38,null,null,null,null,null,null,58,null,null,null,null,null,null,78,null,null,null,null,null,null,98,null,null,null,null,null,null,null,null,null,null,null,18,"",18,null,null,""]
[19,null,null,null,null,null,null,39,null,null,null,null,null,null,59,null,null,null,null,null,null,79,null,null,null,null,null,null,99,null,null,null,null,null,null,null,null,null,null,null,19,"",19,null,null,""]
[20,null,null,null,null,null,null,40,null,null,null,null,null,null,60,null,null,null,null,null,null,80,null,null,null,null,null,null,100,null,null,null,null,null,null,null,null,null,null,null,20,"",20,null,null,""]
["AVERAGE WALKING SPEED (ft / sec)",null,null,null,null,null,null,null,null,null,null,null,null,null,null,null,null,null,null,null,null,null,null,null,null,{"$f":"IFERROR(AVERAGE(AT32:AT131),0)","v":0},null,null,null,null,null,null,null,null,null,null,null,null,null,null,{"$f":"H32","v":21},{"$f":"IF(I32>0,I32,\"\")","v":""},21,null,null,""]
["15th PERCENTILE SPEED (ft / sec)",null,null,null,null,null,null,null,null,null,null,null,null,null,null,null,null,null,null,null,null,null,null,null,null,{"$f":"IFERROR(Z14/VLOOKUP(AR31,AQ32:AR131,2),0)","v":0},null,null,null,null,null,null,null,null,null,null,null,null,null,null,22,{"$f":"IF(I33>0,I33,\"\")","v":""},22,null,null,""]
["* A sample size of 100 observations is suggested. If 100 observations cannot be recorded, it is suggested to collect 90% of the speeds of pedestrians during the 4 daily peak hours. The peak hours can be established by pedestrian counts at the crossing location of interest.",null,null,null,null,null,null,null,null,null,null,null,null,null,null,null,null,null,null,null,null,null,null,null,null,null,null,null,null,null,null,null,null,null,null,null,null,null,null,null,23,"",23,null,null,""]
[null,null,null,null,null,null,null,null,null,null,null,null,null,null,null,null,null,null,null,null,null,null,null,null,null,null,null,null,null,null,null,null,null,null,null,null,null,null,null,null,24,"",24,null,null,""]
[null,null,null,null,null,null,null,null,null,null,null,null,null,null,null,null,null,null,null,null,null,null,null,null,null,null,null,null,null,null,null,null,null,null,null,null,null,null,null,null,25,"",25,null,null,""]
[null,null,null,null,null,null,null,null,null,null,null,null,null,null,null,null,null,null,null,null,null,null,null,null,null,null,null,null,null,null,null,null,null,null,null,null,null,null,null,null,26,"",26,null,null,""]
[null,null,null,null,null,null,null,null,null,null,null,null,null,null,null,null,null,null,null,null,null,null,null,null,null,null,null,null,null,null,null,null,null,null,null,null,null,null,null,null,27,"",27,null,null,""]
[null,null,null,null,null,null,null,null,null,null,null,null,null,null,null,null,null,null,null,null,null,null,null,null,null,null,null,null,null,null,null,null,null,null,null,null,null,null,null,null,28,"",28,null,null,""]
[null,null,null,null,null,null,null,null,null,null,null,null,null,null,null,null,null,null,null,null,null,null,null,null,null,null,null,null,null,null,null,null,null,null,null,null,null,null,null,null,29,"",29,null,null,""]
[null,null,null,null,null,null,null,null,null,null,null,null,null,null,null,null,null,null,null,null,null,null,null,null,null,null,null,null,null,null,null,null,null,null,null,null,null,null,null,null,30,"",30,null,null,""]
[null,null,null,null,null,null,null,null,null,null,null,null,null,null,null,null,null,null,null,null,null,null,null,null,null,null,null,null,null,null,null,null,null,null,null,null,null,null,null,null,31,"",31,null,null,""]
[null,null,null,null,null,null,null,null,null,null,null,null,null,null,null,null,null,null,null,null,null,null,null,null,null,null,null,null,null,null,null,null,null,null,null,null,null,null,null,null,32,"",32,null,null,""]
[null,null,null,null,null,null,null,null,null,null,null,null,null,null,null,null,null,null,null,null,null,null,null,null,null,null,null,null,null,null,null,null,null,null,null,null,null,null,null,null,33,"",33,null,null,""]
[null,null,null,null,null,null,null,null,null,null,null,null,null,null,null,null,null,null,null,null,null,null,null,null,null,null,null,null,null,null,null,null,null,null,null,null,null,null,null,null,34,"",34,null,null,""]
[null,null,null,null,null,null,null,null,null,null,null,null,null,null,null,null,null,null,null,null,null,null,null,null,null,null,null,null,null,null,null,null,null,null,null,null,null,null,null,null,35,"",35,null,null,""]
[null,null,null,null,null,null,null,null,null,null,null,null,null,null,null,null,null,null,null,null,null,null,null,null,null,null,null,null,null,null,null,null,null,null,null,null,null,null,null,null,36,"",36,null,null,""]
[null,null,null,null,null,null,null,null,null,null,null,null,null,null,null,null,null,null,null,null,null,null,null,null,null,null,null,null,null,null,null,null,null,null,null,null,null,null,null,null,37,"",37,null,null,""]
[null,null,null,null,null,null,null,null,null,null,null,null,null,null,null,null,null,null,null,null,null,null,null,null,null,null,null,null,null,null,null,null,null,null,null,null,null,null,null,null,38,"",38,null,null,""]
[null,null,null,null,null,null,null,null,null,null,null,null,null,null,null,null,null,null,null,null,null,null,null,null,null,null,null,null,null,null,null,null,null,null,null,null,null,null,null,null,39,"",39,null,null,""]
[null,null,null,null,null,null,null,null,null,null,null,null,null,null,null,null,null,null,null,null,null,null,null,null,null,null,null,null,null,null,null,null,null,null,null,null,null,null,null,null,40,"",40,null,null,""]
[null,null,null,null,null,null,null,null,null,null,null,null,null,null,null,null,null,null,null,null,null,null,null,null,null,null,null,null,null,null,null,null,null,null,null,null,null,null,null,null,{"$f":"O32","v":41},{"$f":"IF(P32>0,P32,\"\")","v":""},41,null,null,""]
[null,null,null,null,null,null,null,null,null,null,null,null,null,null,null,null,null,null,null,null,null,null,null,null,null,null,null,null,null,null,null,null,null,null,null,null,null,null,null,null,42,{"$f":"IF(P33>0,P33,\"\")","v":""},42,null,null,""]
[null,null,null,null,null,null,null,null,null,null,null,null,null,null,null,null,null,null,null,null,null,null,null,null,null,null,null,null,null,null,null,null,null,null,null,null,null,null,null,null,43,"",43,null,null,""]
[null,null,null,null,null,null,null,null,null,null,null,null,null,null,null,null,null,null,null,null,null,null,null,null,null,null,null,null,null,null,null,null,null,null,null,null,null,null,null,null,44,"",44,null,null,""]
[null,null,null,null,null,null,null,null,null,null,null,null,null,null,null,null,null,null,null,null,null,null,null,null,null,null,null,null,null,null,null,null,null,null,null,null,null,null,null,null,45,"",45,null,null,""]
[null,null,null,null,null,null,null,null,null,null,null,null,null,null,null,null,null,null,null,null,null,null,null,null,null,null,null,null,null,null,null,null,null,null,null,null,null,null,null,null,46,"",46,null,null,""]
[null,null,null,null,null,null,null,null,null,null,null,null,null,null,null,null,null,null,null,null,null,null,null,null,null,null,null,null,null,null,null,null,null,null,null,null,null,null,null,null,47,"",47,null,null,""]
[null,null,null,null,null,null,null,null,null,null,null,null,null,null,null,null,null,null,null,null,null,null,null,null,null,null,null,null,null,null,null,null,null,null,null,null,null,null,null,null,48,"",48,null,null,""]
[null,null,null,null,null,null,null,null,null,null,null,null,null,null,null,null,null,null,null,null,null,null,null,null,null,null,null,null,null,null,null,null,null,null,null,null,null,null,null,null,49,"",49,null,null,""]
[null,null,null,null,null,null,null,null,null,null,null,null,null,null,null,null,null,null,null,null,null,null,null,null,null,null,null,null,null,null,null,null,null,null,null,null,null,null,null,null,50,"",50,null,null,""]
[null,null,null,null,null,null,null,null,null,null,null,null,null,null,null,null,null,null,null,null,null,null,null,null,null,null,null,null,null,null,null,null,null,null,null,null,null,null,null,null,51,"",51,null,null,""]
[null,null,null,null,null,null,null,null,null,null,null,null,null,null,null,null,null,null,null,null,null,null,null,null,null,null,null,null,null,null,null,null,null,null,null,null,null,null,null,null,52,"",52,null,null,""]
[null,null,null,null,null,null,null,null,null,null,null,null,null,null,null,null,null,null,null,null,null,null,null,null,null,null,null,null,null,null,null,null,null,null,null,null,null,null,null,null,53,"",53,null,null,""]
[null,null,null,null,null,null,null,null,null,null,null,null,null,null,null,null,null,null,null,null,null,null,null,null,null,null,null,null,null,null,null,null,null,null,null,null,null,null,null,null,54,"",54,null,null,""]
[null,null,null,null,null,null,null,null,null,null,null,null,null,null,null,null,null,null,null,null,null,null,null,null,null,null,null,null,null,null,null,null,null,null,null,null,null,null,null,null,55,"",55,null,null,""]
[null,null,null,null,null,null,null,null,null,null,null,null,null,null,null,null,null,null,null,null,null,null,null,null,null,null,null,null,null,null,null,null,null,null,null,null,null,null,null,null,56,"",56,null,null,""]
[null,null,null,null,null,null,null,null,null,null,null,null,null,null,null,null,null,null,null,null,null,null,null,null,null,null,null,null,null,null,null,null,null,null,null,null,null,null,null,null,57,"",57,null,null,""]
[null,null,null,null,null,null,null,null,null,null,null,null,null,null,null,null,null,null,null,null,null,null,null,null,null,null,null,null,null,null,null,null,null,null,null,null,null,null,null,null,58,"",58,null,null,""]
[null,null,null,null,null,null,null,null,null,null,null,null,null,null,null,null,null,null,null,null,null,null,null,null,null,null,null,null,null,null,null,null,null,null,null,null,null,null,null,null,59,"",59,null,null,""]
[null,null,null,null,null,null,null,null,null,null,null,null,null,null,null,null,null,null,null,null,null,null,null,null,null,null,null,null,null,null,null,null,null,null,null,null,null,null,null,null,60,"",60,null,null,""]
[null,null,null,null,null,null,null,null,null,null,null,null,null,null,null,null,null,null,null,null,null,null,null,null,null,null,null,null,null,null,null,null,null,null,null,null,null,null,null,null,{"$f":"V32","v":61},{"$f":"IF(W32>0,W32,\"\")","v":""},61,null,null,""]
[null,null,null,null,null,null,null,null,null,null,null,null,null,null,null,null,null,null,null,null,null,null,null,null,null,null,null,null,null,null,null,null,null,null,null,null,null,null,null,null,62,{"$f":"IF(W33>0,W33,\"\")","v":""},62,null,null,""]
[null,null,null,null,null,null,null,null,null,null,null,null,null,null,null,null,null,null,null,null,null,null,null,null,null,null,null,null,null,null,null,null,null,null,null,null,null,null,null,null,63,"",63,null,null,""]
[null,null,null,null,null,null,null,null,null,null,null,null,null,null,null,null,null,null,null,null,null,null,null,null,null,null,null,null,null,null,null,null,null,null,null,null,null,null,null,null,64,"",64,null,null,""]
[null,null,null,null,null,null,null,null,null,null,null,null,null,null,null,null,null,null,null,null,null,null,null,null,null,null,null,null,null,null,null,null,null,null,null,null,null,null,null,null,65,"",65,null,null,""]
[null,null,null,null,null,null,null,null,null,null,null,null,null,null,null,null,null,null,null,null,null,null,null,null,null,null,null,null,null,null,null,null,null,null,null,null,null,null,null,null,66,"",66,null,null,{"$f":"IFERROR($Z$14/AP97,\"\")","v":""}]
[null,null,null,null,null,null,null,null,null,null,null,null,null,null,null,null,null,null,null,null,null,null,null,null,null,null,null,null,null,null,null,null,null,null,null,null,null,null,null,null,67,"",67,null,null,""]
[null,null,null,null,null,null,null,null,null,null,null,null,null,null,null,null,null,null,null,null,null,null,null,null,null,null,null,null,null,null,null,null,null,null,null,null,null,null,null,null,68,"",68,null,null,""]
[null,null,null,null,null,null,null,null,null,null,null,null,null,null,null,null,null,null,null,null,null,null,null,null,null,null,null,null,null,null,null,null,null,null,null,null,null,null,null,null,69,"",69,null,null,""]
[null,null,null,null,null,null,null,null,null,null,null,null,null,null,null,null,null,null,null,null,null,null,null,null,null,null,null,null,null,null,null,null,null,null,null,null,null,null,null,null,70,"",70,null,null,""]
[null,null,null,null,null,null,null,null,null,null,null,null,null,null,null,null,null,null,null,null,null,null,null,null,null,null,null,null,null,null,null,null,null,null,null,null,null,null,null,null,71,"",71,null,null,""]
[null,null,null,null,null,null,null,null,null,null,null,null,null,null,null,null,null,null,null,null,null,null,null,null,null,null,null,null,null,null,null,null,null,null,null,null,null,null,null,null,72,"",72,null,null,""]
[null,null,null,null,null,null,null,null,null,null,null,null,null,null,null,null,null,null,null,null,null,null,null,null,null,null,null,null,null,null,null,null,null,null,null,null,null,null,null,null,73,"",73,null,null,""]
[null,null,null,null,null,null,null,null,null,null,null,null,null,null,null,null,null,null,null,null,null,null,null,null,null,null,null,null,null,null,null,null,null,null,null,null,null,null,null,null,74,"",74,null,null,""]
[null,null,null,null,null,null,null,null,null,null,null,null,null,null,null,null,null,null,null,null,null,null,null,null,null,null,null,null,null,null,null,null,null,null,null,null,null,null,null,null,75,"",75,null,null,""]
[null,null,null,null,null,null,null,null,null,null,null,null,null,null,null,null,null,null,null,null,null,null,null,null,null,null,null,null,null,null,null,null,null,null,null,null,null,null,null,null,76,"",76,null,null,""]
[null,null,null,null,null,null,null,null,null,null,null,null,null,null,null,null,null,null,null,null,null,null,null,null,null,null,null,null,null,null,null,null,null,null,null,null,null,null,null,null,77,"",77,null,null,""]
[null,null,null,null,null,null,null,null,null,null,null,null,null,null,null,null,null,null,null,null,null,null,null,null,null,null,null,null,null,null,null,null,null,null,null,null,null,null,null,null,78,"",78,null,null,""]
[null,null,null,null,null,null,null,null,null,null,null,null,null,null,null,null,null,null,null,null,null,null,null,null,null,null,null,null,null,null,null,null,null,null,null,null,null,null,null,null,79,"",79,null,null,""]
[null,null,null,null,null,null,null,null,null,null,null,null,null,null,null,null,null,null,null,null,null,null,null,null,null,null,null,null,null,null,null,null,null,null,null,null,null,null,null,null,80,"",80,null,null,""]
[null,null,null,null,null,null,null,null,null,null,null,null,null,null,null,null,null,null,null,null,null,null,null,null,null,null,null,null,null,null,null,null,null,null,null,null,null,null,null,null,{"$f":"AC32","v":81},{"$f":"IF(AD32>0,AD32,\"\")","v":""},81,null,null,""]
[null,null,null,null,null,null,null,null,null,null,null,null,null,null,null,null,null,null,null,null,null,null,null,null,null,null,null,null,null,null,null,null,null,null,null,null,null,null,null,null,82,{"$f":"IF(AD33>0,AD33,\"\")","v":""},82,null,null,""]
[null,null,null,null,null,null,null,null,null,null,null,null,null,null,null,null,null,null,null,null,null,null,null,null,null,null,null,null,null,null,null,null,null,null,null,null,null,null,null,null,83,"",83,null,null,""]
[null,null,null,null,null,null,null,null,null,null,null,null,null,null,null,null,null,null,null,null,null,null,null,null,null,null,null,null,null,null,null,null,null,null,null,null,null,null,null,null,84,"",84,null,null,""]
[null,null,null,null,null,null,null,null,null,null,null,null,null,null,null,null,null,null,null,null,null,null,null,null,null,null,null,null,null,null,null,null,null,null,null,null,null,null,null,null,85,"",85,null,null,""]
[null,null,null,null,null,null,null,null,null,null,null,null,null,null,null,null,null,null,null,null,null,null,null,null,null,null,null,null,null,null,null,null,null,null,null,null,null,null,null,null,86,"",86,null,null,""]
[null,null,null,null,null,null,null,null,null,null,null,null,null,null,null,null,null,null,null,null,null,null,null,null,null,null,null,null,null,null,null,null,null,null,null,null,null,null,null,null,87,"",87,null,null,""]
[null,null,null,null,null,null,null,null,null,null,null,null,null,null,null,null,null,null,null,null,null,null,null,null,null,null,null,null,null,null,null,null,null,null,null,null,null,null,null,null,88,"",88,null,null,""]
[null,null,null,null,null,null,null,null,null,null,null,null,null,null,null,null,null,null,null,null,null,null,null,null,null,null,null,null,null,null,null,null,null,null,null,null,null,null,null,null,89,"",89,null,null,""]
[null,null,null,null,null,null,null,null,null,null,null,null,null,null,null,null,null,null,null,null,null,null,null,null,null,null,null,null,null,null,null,null,null,null,null,null,null,null,null,null,90,"",90,null,null,""]
[null,null,null,null,null,null,null,null,null,null,null,null,null,null,null,null,null,null,null,null,null,null,null,null,null,null,null,null,null,null,null,null,null,null,null,null,null,null,null,null,91,"",91,null,null,""]
[null,null,null,null,null,null,null,null,null,null,null,null,null,null,null,null,null,null,null,null,null,null,null,null,null,null,null,null,null,null,null,null,null,null,null,null,null,null,null,null,92,"",92,null,null,""]
[null,null,null,null,null,null,null,null,null,null,null,null,null,null,null,null,null,null,null,null,null,null,null,null,null,null,null,null,null,null,null,null,null,null,null,null,null,null,null,null,93,"",93,null,null,""]
[null,null,null,null,null,null,null,null,null,null,null,null,null,null,null,null,null,null,null,null,null,null,null,null,null,null,null,null,null,null,null,null,null,null,null,null,null,null,null,null,94,"",94,null,null,""]
[null,null,null,null,null,null,null,null,null,null,null,null,null,null,null,null,null,null,null,null,null,null,null,null,null,null,null,null,null,null,null,null,null,null,null,null,null,null,null,null,95,"",95,null,null,""]
[null,null,null,null,null,null,null,null,null,null,null,null,null,null,null,null,null,null,null,null,null,null,null,null,null,null,null,null,null,null,null,null,null,null,null,null,null,null,null,null,96,"",96,null,null,""]
[null,null,null,null,null,null,null,null,null,null,null,null,null,null,null,null,null,null,null,null,null,null,null,null,null,null,null,null,null,null,null,null,null,null,null,null,null,null,null,null,97,"",97,null,null,""]
[null,null,null,null,null,null,null,null,null,null,null,null,null,null,null,null,null,null,null,null,null,null,null,null,null,null,null,null,null,null,null,null,null,null,null,null,null,null,null,null,98,"",98,null,null,""]
[null,null,null,null,null,null,null,null,null,null,null,null,null,null,null,null,null,null,null,null,null,null,null,null,null,null,null,null,null,null,null,null,null,null,null,null,null,null,null,null,99,"",99,null,null,""]
[null,null,null,null,null,null,null,null,null,null,null,null,null,null,null,null,null,null,null,null,null,null,null,null,null,null,null,null,null,null,null,null,null,null,null,null,null,null,null,null,100,"",100,null,null,""]